fUSD/lending_fUSD_20250216
["ID","MTS","AMOUNT","RATE_DAILY","PERIOD"]
[353300467,1739743836470,-500.0,0.00011039,2]
[353300468,1739743836479,-2447.18,0.00011039,2]
[353300469,1739743836489,-500.0,0.00011039,2]
[353300470,1739743836499,-500.0,0.00011039,2]
[353300471,1739743836509,-1272.04,0.00011039,2]
[353300472,1739743836520,-500.0,0.00011039,2]
[353300473,1739743836532,-500.0,0.00011039,2]
[353300474,1739743836543,-1620.04,0.00011039,2]
[353300475,1739743836553,-626.14,0.00011039,2]
[353300476,1739743836563,-500.0,0.00011039,2]
[353300477,1739743836572,-500.0,0.00011039,2]
[353300478,1739743836582,-1041.84,0.0001104,2]
[353300479,1739743836590,-500.0,0.0001104,2]
[353300480,1739743836600,-755.41,0.0001104,2]
[353300481,1739743836609,-1036.75,0.0001104,2]
[353300482,1739743836618,-1298.67,0.0001104,2]
[353300483,1739743836628,-1000.0,0.0001104,2]
[353300484,1739743836637,-1172.76,0.0001104,2]
[353300485,1739743836646,-500.0,0.0001104,2]
[353300486,1739743836655,-500.0,0.0001104,2]
[353300487,1739743836664,-1016.8,0.0001104,2]
[353300488,1739743836674,-716.65,0.0001104,2]
[353300489,1739743836684,-500.0,0.00011041,2]
[353300490,1739743836694,-500.0,0.00011041,2]
[353300491,1739743836703,-500.0,0.00011041,2]
[353300492,1739743836712,-500.0,0.00011041,2]
[353300493,1739743836721,-211.9795754,0.00011041,2]
[353300494,1739743836730,-500.0,0.00011041,2]
[353300495,1739743836740,-500.0,0.00011041,2]
[353300496,1739743836749,-500.0,0.00011041,2]
[353300497,1739743836758,-500.0,0.00011041,2]
[353300498,1739743836768,-500.0,0.00011041,2]
[353300499,1739743836777,-500.0,0.00011041,2]
[353300500,1739743836787,-201.42832034,0.00011041,2]
[353300501,1739743836796,-500.0,0.00011041,2]
[353300502,1739743836805,-500.0,0.00011041,2]
[353300503,1739743836815,-500.0,0.00011041,2]
[353300504,1739743836824,-500.0,0.00011041,2]
[353300505,1739743836833,-500.0,0.00011041,2]
[353300506,1739743836842,-205.10372403,0.00011041,2]
[353300507,1739743836852,-500.0,0.00011041,2]
[353300508,1739743836861,-500.0,0.00011041,2]
[353300509,1739743836871,-544.21,0.00011041,2]
[353300510,1739743836880,-456.6,0.00011041,2]
[353300511,1739743836889,-500.0,0.00011041,2]
[353300512,1739743836898,-500.0,0.00011041,2]
[353300513,1739743836908,-500.0,0.00011041,2]
[353300514,1739743836917,-500.0,0.00011041,2]
[353300515,1739743836925,-500.0,0.00011041,2]
[353300516,1739743836934,-500.0,0.00011041,2]
[353300517,1739743836944,-500.0,0.00011041,2]
[353300518,1739743836952,-500.0,0.00011041,2]
[353300519,1739743836962,-714.06,0.00011041,2]
[353300520,1739743836973,-500.0,0.00011041,2]
[353300521,1739743836984,-500.0,0.00011041,2]
[353300522,1739743836995,-500.0,0.00011041,2]
[353300523,1739743837006,-500.0,0.00011041,2]
[353300524,1739743837015,-728.13,0.00011041,2]
[353300525,1739743837027,-500.0,0.00011041,2]
[353300526,1739743837037,-500.0,0.00011041,2]
[353300527,1739743837258,-500.0,0.00011041,2]
[353300528,1739743837268,-583.4,0.00011041,2]
[353300529,1739743837278,-500.0,0.00011041,2]
[353300530,1739743837287,-500.0,0.00011041,2]
[353300531,1739743837296,-500.0,0.00011041,2]
[353300532,1739743837305,-500.0,0.00011041,2]
[353300533,1739743837315,-500.0,0.00011041,2]
[353300535,1739743837323,-500.0,0.00011041,2]
[353300536,1739743837332,-500.0,0.00011041,2]
[353300537,1739743837341,-500.0,0.00011041,2]
[353300538,1739743837350,-500.0,0.00011041,2]
[353300539,1739743837359,-500.0,0.00011041,2]
[353300540,1739743837368,-500.0,0.00011041,2]
[353300541,1739743837376,-500.0,0.00011041,2]
[353300542,1739743837385,-500.0,0.00011041,2]
[353300543,1739743837394,-521.1,0.00011041,2]
[353300544,1739743837403,-500.0,0.00011041,2]
[353300545,1739743837412,-500.0,0.00011041,2]
[353300546,1739743837421,-500.0,0.00011041,2]
[353300547,1739743837431,-500.0,0.00011041,2]
[353300549,1739743837440,-569.07,0.00011041,2]
[353300551,1739743837449,-500.0,0.00011041,2]
[353300552,1739743837458,-639.31,0.00011041,2]
[353300553,1739743837467,-500.0,0.00011041,2]
[353300554,1739743837476,-500.0,0.00011041,2]
[353300555,1739743837485,-500.0,0.00011041,2]
[353300556,1739743837494,-500.0,0.00011041,2]
[353300557,1739743837503,-500.0,0.00011041,2]
[353300558,1739743837512,-500.0,0.00011041,2]
[353300559,1739743837526,-500.0,0.00011041,2]
[353300560,1739743837536,-500.0,0.00011041,2]
[353300561,1739743837545,-500.0,0.00011041,2]
[353300562,1739743837554,-746.52,0.00011041,2]
[353300563,1739743837564,-500.0,0.00011041,2]
[353300564,1739743837574,-620.87,0.00011041,2]
[353300565,1739743837584,-500.0,0.00011041,2]
[353300566,1739743837593,-527.75,0.00011041,2]
[353300567,1739743837603,-703.13,0.00011041,2]
[353300568,1739743837613,-758.03,0.00011041,2]
[353300569,1739743837622,-500.0,0.00011041,2]
[353300570,1739743837631,-500.0,0.00011041,2]
[353300571,1739743837641,-500.0,0.00011041,2]
[353300572,1739743837650,-500.0,0.00011041,2]
[353300573,1739743837659,-500.0,0.00011041,2]
[353300574,1739743837667,-500.0,0.00011041,2]
[353300575,1739743837676,-523.85,0.00011041,2]
[353300576,1739743837687,-500.0,0.00011041,2]
[353300577,1739743837696,-500.0,0.00011041,2]
[353300578,1739743837706,-500.0,0.00011041,2]
[353300579,1739743837715,-536.09,0.00011041,2]
[353300580,1739743837724,-500.0,0.00011041,2]
[353300581,1739743837734,-500.0,0.00011041,2]
[353300582,1739743837743,-640.13,0.00011041,2]
[353300583,1739743837754,-488.64642181,0.00011041,2]
[353300584,1739743837777,-11.35357819,0.00011041,2]
[353300585,1739743837786,-828.92,0.00011041,2]
[353300586,1739743837795,-657.03,0.00011041,2]
[353300587,1739743837804,-1040.32,0.00011041,2]
[353300588,1739743837813,-500.0,0.00011041,2]
[353300589,1739743837822,-881.8,0.00011041,2]
[353300590,1739743837831,-500.0,0.00011041,2]
[353300591,1739743837840,-1378.98,0.00011041,2]
[353300592,1739743837849,-537.54,0.00011041,2]
[353300593,1739743837858,-500.0,0.00011041,2]
[353300594,1739743837867,-1021.03492864,0.00011041,2]
[353300595,1739743837879,-349.990002,0.00011041,2]
[353300597,1739743837890,-260.98506936,0.00011041,2]
[353300598,1739743837899,-20.70493054,0.00011041,2]
[353300599,1739743837910,-719.83506946,0.00011041,2]
[353300600,1739743837919,-220.2,0.00011041,2]
[353300601,1739743837928,-853.23,0.00011041,2]
[353300602,1739743837937,-543.84,0.00011041,2]
[353300603,1739743837946,-500.0,0.00011041,2]
[353300604,1739743837955,-618.51,0.00011041,2]
[353300606,1739743837963,-599.54,0.00011041,2]
[353300607,1739743837973,-500.0,0.00011041,2]
[353300609,1739743837982,-791.59,0.00011041,2]
[353300610,1739743837991,-360.11213395,0.00011041,2]
[353300613,1739743838007,-498.75786605,0.00011041,2]
[353300614,1739743838017,-1165.86,0.00011041,2]
[353300616,1739743838026,-500.0,0.00011041,2]
[353300617,1739743838035,-500.0,0.00011041,2]
[353300619,1739743838044,-717.35,0.00011041,2]
[353300621,1739743838053,-500.0,0.00011041,2]
[353300623,1739743838062,-500.0,0.00011041,2]
[353300625,1739743838071,-807.84,0.00011041,2]
[353300626,1739743838080,-500.0,0.00011041,2]
[353300628,1739743838089,-894.1,0.00011041,2]
[353300629,1739743838098,-1443.39,0.00011041,2]
[353300631,1739743838107,-500.0,0.00011041,2]
[353300632,1739743838116,-652.28,0.00011041,2]
[353300633,1739743838125,-500.0,0.00011041,2]
[353300634,1739743838134,-573.79,0.00011041,2]
[353300635,1739743838143,-500.0,0.00011041,2]
[353300636,1739743838152,-500.0,0.00011041,2]
[353300637,1739743838161,-1116.66,0.00011041,2]
[353300639,1739743838170,-500.0,0.00011041,2]
[353300641,1739743838180,-500.0,0.00011041,2]
[353300643,1739743838189,-500.0,0.00011041,2]
[353300645,1739743838198,-500.0,0.00011041,2]
[353300647,1739743838207,-628.06,0.00011041,2]
[353300649,1739743838216,-3109.81673496,0.00011053,2]
[353300651,1739743838225,-179.40103547,0.00011099,2]
[353300653,1739743838234,-3109.81673496,0.00011117,2]
[353300655,1739743838243,-469.23866742,0.0001112,2]
[353300657,1739743838251,-152.59058634,0.0001112,2]
[353300659,1739743838260,-500.0,0.0001112,2]
[353300661,1739743838269,-388.4606258,0.0001112,2]
[353300663,1739743838279,-500.0,0.0001112,2]
[353300665,1739743838288,-500.0,0.00011121,2]
[353300667,1739743838297,-500.0,0.00011121,2]
[353300669,1739743838309,-500.0,0.00011121,2]
[353300671,1739743838318,-832.06,0.00011121,2]
[353300673,1739743838327,-500.0,0.00011121,2]
[353300675,1739743838336,-500.0,0.00011121,2]
[353300676,1739743838345,-500.0,0.00011121,2]
[353300677,1739743838354,-500.0,0.00011121,2]
[353300678,1739743838363,-500.0,0.00011121,2]
[353300679,1739743838372,-500.0,0.00011121,2]
[353300680,1739743838381,-500.0,0.00011121,2]
[353300681,1739743838390,-500.0,0.00011121,2]
[353300682,1739743838399,-500.0,0.00011121,2]
[353300683,1739743838409,-500.0,0.00011121,2]
[353300684,1739743838418,-500.0,0.00011121,2]
[353300685,1739743838427,-500.0,0.00011121,2]
[353300686,1739743838437,-500.0,0.00011121,2]
[353300687,1739743838446,-500.0,0.00011121,2]
[353300688,1739743838455,-500.0,0.00011121,2]
[353300689,1739743838464,-500.0,0.00011121,2]
[353300690,1739743838473,-500.0,0.00011121,2]
[353300691,1739743838482,-500.0,0.00011121,2]
[353300692,1739743838491,-500.0,0.00011121,2]
[353300693,1739743838501,-500.0,0.00011121,2]
[353300694,1739743838510,-500.0,0.00011121,2]
[353300695,1739743838521,-500.0,0.00011121,2]
[353300696,1739743838532,-500.0,0.00011121,2]
[353300697,1739743838541,-500.0,0.00011121,2]
[353300698,1739743838549,-500.0,0.00011121,2]
[353300699,1739743838559,-500.0,0.00011121,2]
[353300700,1739743838569,-278.16909695,0.00011121,2]
[353300701,1739743838578,-500.0,0.00011121,2]
[353300702,1739743838587,-500.0,0.00011121,2]
[353300703,1739743838596,-500.0,0.00011121,2]
[353300704,1739743838606,-509.92,0.00011121,2]
[353300705,1739743838615,-500.0,0.00011121,2]
[353300706,1739743838624,-500.0,0.00011121,2]
[353300707,1739743838633,-500.0,0.00011121,2]
[353300708,1739743838642,-500.0,0.00011121,2]
[353300709,1739743838651,-519.55,0.00011121,2]
[353300710,1739743838660,-500.0,0.00011121,2]
[353300711,1739743838670,-500.0,0.00011121,2]
[353300712,1739743838680,-500.0,0.00011121,2]
[353300713,1739743838689,-545.36,0.00011121,2]
[353300714,1739743838698,-537.82,0.00011121,2]
[353300715,1739743838707,-500.0,0.00011121,2]
[353300716,1739743838716,-500.0,0.00011121,2]
[353300717,1739743838725,-500.0,0.00011121,2]
[353300718,1739743838734,-428.619564,0.00011121,2]
[353300719,1739743838743,-500.0,0.00011121,2]
[353300720,1739743838753,-500.0,0.00011121,2]
[353300721,1739743838762,-500.0,0.00011121,2]
[353300722,1739743838771,-605.506852,0.00011121,2]
[353300723,1739743838781,-500.0,0.00011121,2]
[353300724,1739743838791,-500.0,0.00011121,2]
[353300725,1739743838801,-500.0,0.00011121,2]
[353300726,1739743838810,-500.0,0.00011121,2]
[353300727,1739743838819,-500.0,0.00011121,2]
[353300728,1739743838828,-500.0,0.00011121,2]
[353300729,1739743838837,-500.0,0.00011121,2]
[353300730,1739743838846,-361.76,0.00011121,2]
[353300731,1739743838856,-500.0,0.00011121,2]
[353300732,1739743838866,-885.61,0.00011121,2]
[353300733,1739743838875,-500.0,0.00011121,2]
[353300734,1739743838884,-500.0,0.00011121,2]
[353300735,1739743838894,-500.0,0.00011121,2]
[353300736,1739743838904,-644.46,0.00011121,2]
[353300737,1739743838915,-500.0,0.00011121,2]
[353300738,1739743838925,-611.27,0.00011121,2]
[353300739,1739743838935,-500.0,0.00011121,2]
[353300740,1739743838944,-551.58,0.00011121,2]
[353300741,1739743838953,-500.0,0.00011121,2]
[353300742,1739743838963,-500.0,0.00011121,2]
[353300743,1739743838972,-500.0,0.00011121,2]
[353300744,1739743838982,-500.0,0.00011121,2]
[353300745,1739743838992,-660.26,0.00011121,2]
[353300746,1739743839002,-456.90117038,0.00011121,2]
[353300747,1739743839011,-593.26,0.00011121,2]
[353300748,1739743839021,-500.0,0.00011121,2]
[353300749,1739743839031,-553.94,0.00011121,2]
[353300750,1739743839041,-500.0,0.00011121,2]
[353300751,1739743839050,-500.0,0.00011121,2]
[353300752,1739743839059,-500.0,0.00011121,2]
[353300753,1739743839068,-500.0,0.00011121,2]
[353300754,1739743839078,-500.0,0.00011121,2]
[353300755,1739743839089,-565.94,0.00011121,2]
[353300756,1739743839098,-500.0,0.00011121,2]
[353300757,1739743839107,-500.0,0.00011121,2]
[353300758,1739743839117,-500.0,0.00011121,2]
[353300759,1739743839126,-776.79,0.00011121,2]
[353300760,1739743839135,-673.88,0.00011121,2]
[353300761,1739743839144,-500.0,0.00011121,2]
[353300762,1739743839153,-500.0,0.00011121,2]
[353300763,1739743839162,-500.0,0.00011121,2]
[353300764,1739743839171,-500.0,0.00011121,2]
[353300765,1739743839181,-500.0,0.00011121,2]
[353300766,1739743839191,-500.0,0.00011121,2]
[353300767,1739743839200,-500.0,0.00011121,2]
[353300768,1739743839209,-500.0,0.00011121,2]
[353300769,1739743839218,-603.97,0.00011121,2]
[353300770,1739743839227,-500.0,0.00011121,2]
[353300771,1739743839236,-181.7,0.00011121,2]
[353300772,1739743839245,-662.07,0.00011121,2]
[353300773,1739743839254,-500.0,0.00011121,2]
[353300774,1739743839263,-500.0,0.00011121,2]
[353300776,1739743839272,-500.0,0.00011121,2]
[353300778,1739743839283,-584.92,0.00011121,2]
[353300780,1739743839292,-500.0,0.00011121,2]
[353300782,1739743839302,-500.0,0.00011121,2]
[353300784,1739743839311,-1652.52,0.00011121,2]
[353300785,1739743839320,-500.0,0.00011121,2]
[353300786,1739743839330,-500.0,0.00011121,2]
[353300787,1739743839339,-709.16,0.00011121,2]
[353300788,1739743839351,-500.0,0.00011121,2]
[353300789,1739743839362,-1084.76,0.00011121,2]
[353300790,1739743839373,-1022.74,0.00011121,2]
[353300791,1739743839383,-500.0,0.00011121,2]
[353300792,1739743839392,-500.0,0.00011121,2]
[353300793,1739743839402,-862.95,0.00011121,2]
[353300794,1739743839411,-500.0,0.00011121,2]
[353300795,1739743839420,-500.0,0.00011121,2]
[353300797,1739743839430,-2109.33,0.00011121,2]
[353300798,1739743839439,-500.0,0.00011121,2]
[353300799,1739743839448,-659.1,0.00011121,2]
[353300800,1739743839457,-500.0,0.00011121,2]
[353300801,1739743839466,-796.43,0.00011121,2]
[353300802,1739743839475,-500.0,0.00011121,2]
[353300803,1739743839485,-1070.81,0.00011121,2]
[353300804,1739743839494,-676.0,0.00011121,2]
[353300805,1739743839503,-500.0,0.00011121,2]
[353300806,1739743839512,-1331.97,0.00011121,2]
[353300807,1739743839525,-500.0,0.00011121,2]
[353300808,1739743839535,-500.0,0.00011121,2]
[353300809,1739743839544,-500.0,0.00011121,2]
[353300810,1739743839553,-955.73,0.00011121,2]
[353300811,1739743839563,-500.0,0.00011121,2]
[353300812,1739743839573,-500.0,0.00011121,2]
[353300813,1739743839582,-1388.19,0.00011121,2]
[353300814,1739743839591,-3526.87,0.00011121,2]
[353300815,1739743839602,-793.3,0.00011121,2]
[353300816,1739743839611,-839.11,0.00011121,2]
[353300817,1739743839621,-632.97,0.00011121,2]
[353300818,1739743839631,-928.41,0.00011121,2]
[353300819,1739743839640,-500.0,0.00011121,2]
[353300820,1739743839650,-947.29,0.00011121,2]
[353300821,1739743839660,-500.0,0.00011121,2]
[353300822,1739743839669,-604.69,0.00011121,2]
[353300823,1739743839678,-500.0,0.00011121,2]
[353300824,1739743839690,-500.0,0.00011121,2]
[353300825,1739743839700,-500.0,0.00011121,2]
[353300826,1739743839710,-1004.66,0.00011121,2]
[353300827,1739743839719,-930.09,0.00011121,2]
[353300828,1739743839729,-1090.64,0.00011121,2]
[353300829,1739743839738,-506.83,0.00011121,2]
[353300830,1739743839748,-500.0,0.00011121,2]
[353300831,1739743839759,-500.0,0.00011121,2]
[353300832,1739743839769,-500.0,0.00011121,2]
[353300833,1739743839779,-552.02,0.00011121,2]
[353300834,1739743839789,-500.0,0.00011121,2]
[353300835,1739743839799,-3080.91,0.00011121,2]
[353300836,1739743839809,-500.0,0.00011121,2]
[353300837,1739743839818,-557.45,0.00011121,2]
[353300838,1739743839828,-836.96,0.00011121,2]
[353300839,1739743839837,-609.6,0.00011121,2]
[353300840,1739743839846,-500.0,0.00011121,2]
[353300841,1739743839856,-500.0,0.00011121,2]
[353300842,1739743839866,-500.0,0.00011121,2]
[353300843,1739743839875,-788.37,0.00011121,2]
[353300844,1739743839889,-500.0,0.00011121,2]
[353300845,1739743839902,-235.07,0.00011121,2]
[353300846,1739743839913,-535.91,0.00011121,2]
[353300847,1739743839923,-500.0,0.00011121,2]
[353300848,1739743839935,-1029.76,0.00011121,2]
[353300849,1739743839944,-500.0,0.00011121,2]
[353300850,1739743839953,-362.32,0.00011121,2]
[353300851,1739743839963,-500.0,0.00011121,2]
[353300852,1739743839972,-757.55,0.00011121,2]
[353300853,1739743839982,-500.0,0.00011121,2]
[353300854,1739743839991,-1207.77,0.00011121,2]
[353300855,1739743840002,-993.67,0.00011121,2]
[353300856,1739743840011,-500.0,0.00011121,2]
[353300857,1739743840020,-500.0,0.00011121,2]
[353300858,1739743840030,-883.43,0.00011121,2]
[353300859,1739743840040,-1193.44,0.00011121,2]
[353300860,1739743840049,-500.0,0.00011121,2]
[353300861,1739743840059,-1120.23,0.00011121,2]
[353300862,1739743840068,-1029.53,0.00011121,2]
[353300863,1739743840077,-500.0,0.00011121,2]
[353300864,1739743840086,-745.24,0.00011121,2]
[353300865,1739743840096,-2299.91,0.00011121,2]
[353300866,1739743840105,-500.0,0.00011121,2]
[353300867,1739743840115,-1170.51,0.00011121,2]
[353300868,1739743840124,-500.0,0.00011121,2]
[353300869,1739743840134,-151.3,0.00011121,2]
[353300870,1739743840143,-500.0,0.00011121,2]
[353300871,1739743840153,-1124.91,0.00011121,2]
[353300872,1739743840162,-500.0,0.00011121,2]
[353300873,1739743840171,-500.0,0.00011121,2]
[353300874,1739743840181,-632.96,0.00011121,2]
[353300875,1739743840191,-1572.85,0.00011121,2]
[353300876,1739743840200,-1256.66,0.00011121,2]
[353300877,1739743840209,-500.0,0.00011121,2]
[353300878,1739743840218,-500.0,0.00011121,2]
[353300879,1739743840227,-500.0,0.00011121,2]
[353300880,1739743840235,-500.0,0.00011121,2]
[353300881,1739743840244,-500.0,0.00011121,2]
[353300882,1739743840253,-519.28718071,0.00011121,2]
[353300883,1739743840262,-526.13,0.00011121,2]
[353300884,1739743840270,-1051.04,0.00011121,2]
[353300885,1739743840279,-500.0,0.00011121,2]
[353300886,1739743840288,-916.19,0.00011121,2]
[353300887,1739743840297,-307.53,0.00011121,2]
[353300888,1739743840306,-500.0,0.00011121,2]
[353300889,1739743840315,-1373.28,0.00011121,2]
[353300890,1739743840325,-500.0,0.00011121,2]
[353300891,1739743840334,-500.0,0.00011121,2]
[353300892,1739743840344,-670.74,0.00011121,2]
[353300893,1739743840353,-3030.67,0.00011121,2]
[353300894,1739743840362,-500.0,0.00011121,2]
[353300895,1739743840374,-500.0,0.00011121,2]
[353300896,1739743840383,-558.69,0.00011121,2]
[353300897,1739743840392,-1287.49,0.00011121,2]
[353300898,1739743840401,-2285.4,0.00011121,2]
[353300899,1739743840411,-962.38,0.00011121,2]
[353300900,1739743840420,-500.0,0.00011121,2]
[353300901,1739743840430,-500.0,0.00011121,2]
[353300902,1739743840440,-500.0,0.00011121,2]
[353300903,1739743840449,-500.0,0.00011121,2]
[353300904,1739743840459,-500.0,0.00011121,2]
[353300905,1739743840468,-919.68,0.00011121,2]
[353300906,1739743840478,-500.0,0.00011121,2]
[353300907,1739743840487,-500.0,0.00011121,2]
[353300908,1739743840497,-500.0,0.00011121,2]
[353300909,1739743840507,-500.0,0.00011121,2]
[353300910,1739743840517,-1272.04,0.00011121,2]
[353300911,1739743840530,-515.65,0.00011121,2]
[353300912,1739743840539,-500.0,0.00011121,2]
[353300913,1739743840548,-1620.04,0.00011121,2]
[353300914,1739743840557,-626.14,0.00011121,2]
[353300915,1739743840567,-640.74101375,0.00011121,2]
[353300916,1739743840577,-2447.18,0.00011122,2]
[353300917,1739743840586,-500.0,0.00011122,2]
[353300918,1739743840595,-500.0,0.00011123,2]
[353300919,1739743840605,-245.47,0.00011123,2]
[353300920,1739743840614,-500.0,0.00011123,2]
[353300921,1739743840624,-500.0,0.00011123,2]
[353300922,1739743840633,-500.0,0.00011123,2]
[353300923,1739743840642,-500.0,0.00011123,2]
[353300924,1739743840651,-460.2,0.00011123,2]
[353300925,1739743840661,-500.0,0.00011123,2]
[353300926,1739743840670,-500.0,0.00011123,2]
[353300927,1739743840680,-500.0,0.00011123,2]
[353300928,1739743840691,-500.0,0.00011123,2]
[353300929,1739743840701,-500.0,0.00011123,2]
[353300930,1739743840711,-500.0,0.00011123,2]
[353300931,1739743840720,-500.0,0.00011123,2]
[353300932,1739743840730,-544.21,0.00011123,2]
[353300933,1739743840739,-500.0,0.00011123,2]
[353300934,1739743840749,-500.0,0.00011123,2]
[353300935,1739743840758,-500.0,0.00011123,2]
[353300936,1739743840768,-500.0,0.00011123,2]
[353300937,1739743840777,-500.0,0.00011123,2]
[353300938,1739743840786,-500.0,0.00011123,2]
[353300939,1739743840795,-500.0,0.00011123,2]
[353300940,1739743840804,-500.0,0.00011123,2]
[353300941,1739743840814,-714.06,0.00011123,2]
[353300942,1739743840823,-500.0,0.00011123,2]
[353300943,1739743840832,-500.0,0.00011123,2]
[353300944,1739743840842,-500.0,0.00011123,2]
[353300945,1739743840851,-500.0,0.00011123,2]
[353300946,1739743840860,-728.13,0.00011123,2]
[353300947,1739743840870,-500.0,0.00011123,2]
[353300948,1739743840879,-500.0,0.00011123,2]
[353300949,1739743840889,-583.4,0.00011123,2]
[353300950,1739743840898,-500.0,0.00011123,2]
[353300951,1739743840907,-500.0,0.00011123,2]
[353300952,1739743840917,-500.0,0.00011123,2]
[353300953,1739743840926,-500.0,0.00011123,2]
[353300954,1739743840936,-500.0,0.00011123,2]
[353300955,1739743840945,-500.0,0.00011123,2]
[353300956,1739743840954,-500.0,0.00011123,2]
[353300957,1739743840963,-500.0,0.00011123,2]
[353300958,1739743840973,-500.0,0.00011123,2]
[353300959,1739743840986,-500.0,0.00011123,2]
[353300960,1739743840995,-500.0,0.00011123,2]
[353300961,1739743841004,-500.0,0.00011123,2]
[353300962,1739743841014,-500.0,0.00011123,2]
[353300963,1739743841023,-500.0,0.00011123,2]
[353300964,1739743841032,-237.00892379,0.00011123,2]
[353300965,1739743841041,-500.0,0.00011123,2]
[353300966,1739743841051,-569.07,0.00011123,2]
[353300967,1739743841060,-500.0,0.00011123,2]
[353300968,1739743841070,-639.31,0.00011123,2]
[353300969,1739743841079,-500.0,0.00011123,2]
[353300970,1739743841088,-500.0,0.00011123,2]
[353300971,1739743841098,-500.0,0.00011123,2]
[353300972,1739743841107,-500.0,0.00011123,2]
[353300973,1739743841116,-500.0,0.00011123,2]
[353300974,1739743841279,-500.0,0.00011123,2]
[353300975,1739743841309,-500.0,0.00011123,2]
[353300976,1739743841318,-500.0,0.00011123,2]
[353300977,1739743841328,-500.0,0.00011123,2]
[353300978,1739743841339,-746.52,0.00011123,2]
[353300979,1739743841349,-500.0,0.00011123,2]
[353300980,1739743841359,-620.87,0.00011123,2]
[353300981,1739743841368,-527.75,0.00011123,2]
[353300982,1739743841378,-703.13,0.00011123,2]
[353300983,1739743841387,-758.03,0.00011123,2]
[353300984,1739743841396,-500.0,0.00011123,2]
[353300985,1739743841406,-500.0,0.00011123,2]
[353300986,1739743841415,-500.0,0.00011123,2]
[353300987,1739743841425,-500.0,0.00011123,2]
[353300988,1739743841435,-500.0,0.00011123,2]
[353300989,1739743841444,-500.0,0.00011123,2]
[353300990,1739743841454,-523.85,0.00011123,2]
[353300991,1739743841465,-500.0,0.00011123,2]
[353300992,1739743841474,-500.0,0.00011123,2]
[353300993,1739743841484,-500.0,0.00011123,2]
[353300994,1739743841493,-536.09,0.00011123,2]
[353300995,1739743841503,-500.0,0.00011123,2]
[353300996,1739743841512,-500.0,0.00011123,2]
[353300997,1739743841524,-1041.84,0.00011123,2]
[353300998,1739743841533,-640.13,0.00011123,2]
[353300999,1739743841543,-500.0,0.00011123,2]
[353301000,1739743841553,-755.41,0.00011123,2]
[353301001,1739743841563,-500.0,0.00011123,2]
[353301002,1739743841572,-828.92,0.00011123,2]
[353301003,1739743841582,-1036.75,0.00011123,2]
[353301004,1739743841591,-657.03,0.00011123,2]
[353301005,1739743841602,-1298.67,0.00011123,2]
[353301006,1739743841612,-1000.0,0.00011123,2]